fUST/lending_fUST_20240514
["ID","MTS","AMOUNT","RATE_DAILY","PERIOD"]
[326981230,1715678180732,-151.0,0.0002,2]
[326981231,1715678180759,-176.412387,0.0002,2]
[326981232,1715678180788,-151.0,0.0002,2]
[326981233,1715678180818,-216.654407,0.0002,2]
[326981234,1715678180846,-157.129533,0.0002,2]
[326981235,1715678180876,-157.129533,0.0002,2]
[326981236,1715678180903,-157.129533,0.0002,2]
[326981237,1715678180928,-157.129533,0.0002,2]
[326981238,1715678180954,-157.129533,0.0002,2]
[326981239,1715678180978,-157.129529,0.0002,2]
[326981240,1715678181005,-151.0,0.0002,2]
[326981241,1715678181030,-151.0,0.0002,2]
[326981242,1715678181054,-155.07438981,0.0002,2]
[326981243,1715678181077,-80000.0,0.0002,2]
[326981244,1715678181102,-400.0,0.0002,2]
[326981245,1715678181126,-151.0,0.0002,2]
[326981246,1715678181151,-151.0,0.0002,2]
[326981247,1715678181179,-151.0,0.0002,2]
[326981248,1715678181225,-151.0,0.0002,2]
[326981249,1715678181271,-151.0,0.0002,2]
[326981250,1715678181298,-151.0,0.0002,2]
[326981251,1715678181327,-258.668902,0.0002,2]
[326981252,1715678181351,-258.668902,0.0002,2]
[326981253,1715678181378,-258.668902,0.0002,2]
[326981254,1715678181403,-258.668902,0.0002,2]
[326981255,1715678181433,-258.668902,0.0002,2]
[326981256,1715678181462,-258.668902,0.0002,2]
[326981257,1715678181491,-152.1609928,0.0002,2]
[326981258,1715678181517,-200.0,0.0002,2]
[326981259,1715678181543,-151.0,0.0002,2]
[326981260,1715678181570,-151.0,0.0002,2]
[326981261,1715678181594,-151.0,0.0002,2]
[326981262,1715678181619,-430.941277,0.0002,2]
[326981263,1715678181642,-430.941277,0.0002,2]
[326981264,1715678181666,-430.941277,0.0002,2]
[326981265,1715678181689,-430.941277,0.0002,2]
[326981266,1715678181714,-430.941277,0.0002,2]
[326981267,1715678181738,-430.941277,0.0002,2]
[326981268,1715678181868,-151.0,0.0002,2]
[326981269,1715678181893,-151.0,0.0002,2]
[326981270,1715678181914,-1325.376646,0.0002,2]
[326981271,1715678181936,-1325.376646,0.0002,2]
[326981272,1715678181957,-1325.376646,0.0002,2]
[326981273,1715678181979,-1325.376646,0.0002,2]
[326981274,1715678182001,-1325.376646,0.0002,2]
[326981275,1715678182022,-1325.376646,0.0002,2]
[326981276,1715678182044,-7008.53672489,0.00020112,2]
[326981277,1715678182066,-794.85938995,0.00020281,2]
[326981278,1715678182088,-1325.376646,0.00020328,2]
[326981279,1715678182111,-1325.376646,0.00020328,2]
[326981280,1715678182132,-411.9586858,0.00020541,2]
[326981281,1715678182154,-411.9586858,0.00020572,2]
[326981282,1715678182177,-411.958686,0.00020844,2]
[326981283,1715678182199,-1895.4873316,0.00020912,2]
[326981284,1715678182223,-458.16144716,0.00020912,2]
[326981285,1715678182245,-668.08652704,0.00020912,2]
[326981286,1715678182268,-225.0,0.00021918,2]
[326981287,1715678182291,-151.0,0.00021918,2]
[326981288,1715678182314,-151.0,0.00021918,2]
[326981289,1715678182337,-151.0,0.00021918,2]
[326981290,1715678182360,-151.0,0.00021918,2]
[326981291,1715678182384,-151.0,0.00021918,2]
[326981292,1715678182407,-151.0,0.00021918,2]
[326981293,1715678182433,-166.666666,0.00021918,2]
[326981294,1715678182457,-1074.6093077,0.00021918,2]
[326981295,1715678182482,-276.778896,0.00021918,2]
[326981296,1715678182506,-258.668902,0.00021918,2]
[326981297,1715678182530,-258.668902,0.00021918,2]
[326981298,1715678182553,-430.941277,0.00021918,2]
[326981299,1715678182578,-430.941277,0.00021918,2]
[326981300,1715678182601,-2840.78039207,0.00022,4]
[326981301,1715678182624,-159.4535182,0.00022,2]
[326981302,1715678182647,-151.0,0.00022,2]
[326981303,1715678182670,-166.666666,0.00022431,2]
[326981304,1715678182692,-166.666666,0.00022944,2]
[326981305,1715678182715,-155.57882509,0.00023,2]
[326981306,1715678182739,-166.666666,0.00023456,2]
[326981307,1715678182761,-173.434167,0.00023562,2]
[326981308,1715678182784,-165.351474,0.00023562,2]
[326981309,1715678182807,-165.562968,0.00023562,2]
[326981310,1715678182830,-157.798265,0.00023562,2]
[326981311,1715678182853,-717.03274073,0.000239,2]
[326981312,1715678182876,-166.666666,0.00023969,2]
[326981313,1715678182897,-166.666666,0.00024482,2]
[326981314,1715678182920,-151.0,0.00024658,2]
[326981315,1715678182941,-151.0,0.00024658,2]
[326981316,1715678182964,-250.531482,0.00024658,2]
[326981317,1715678182987,-621.23899472,0.00024946,2]
[326981318,1715678183009,-1325.376646,0.00024946,2]
[326981319,1715678183033,-1325.376646,0.00024946,2]
[326981320,1715678183057,-16166.89458835,0.00025,2]
[326981321,1715678183078,-154.97477557,0.00025,2]
[326981322,1715678183100,-400.28835833,0.00025,2]
[326981323,1715678183122,-168.0886518,0.00025,2]
[326981324,1715678183144,-472.97709924,0.00025,2]
[326981325,1715678183166,-151.0,0.00025,2]
[326981326,1715678183188,-258.668902,0.00025,2]
[326981327,1715678183210,-258.668902,0.00025,2]
[326981328,1715678183232,-430.941277,0.00025,2]
[326981329,1715678183253,-430.941277,0.00025,2]
[326981330,1715678183277,-1325.376646,0.00025,2]
[326981331,1715678183299,-1325.376646,0.00025,2]
[326981332,1715678183322,-620.06194974,0.00026194,2]
[326981333,1715678183343,-186.94184116,0.00027,2]
[326981334,1715678183365,-227.85777289,0.0002739,10]
[326981335,1715678183388,-263.937582,0.00027499,2]
[326981336,1715678183409,-322.40707448,0.00028,2]
[326981337,1715678183436,-493.0,0.00028742,2]
[326981338,1715678183458,-154.464,0.00028742,2]
[326981339,1715678183482,-717.03274073,0.000289,2]
[326981340,1715678183507,-386.35120039,0.00029416,3]
[326981341,1715678183532,-238.7866,0.00029565,2]
[326981342,1715678183555,-6936.33444275,0.0003,2]
[326981343,1715678183578,-150.0,0.00031742,2]
[326981344,1715678183601,-446.07210835,0.00032,4]
[326981345,1715678183624,-1359.42925795,0.00032475,4]
[326981346,1715678183647,-1325.376646,0.00032475,2]
[326981347,1715678183670,-1325.376646,0.00032475,2]
[326981348,1715678183693,-5000.0,0.00032868,2]
[326981349,1715678183716,-151.0,0.00032868,2]
[326981350,1715678183740,-258.668902,0.00032868,2]
[326981351,1715678183764,-258.668902,0.00032868,2]
[326981352,1715678183787,-430.941277,0.00032868,2]
[326981353,1715678183889,-430.941277,0.00032868,2]
[326981354,1715678183914,-42816.73657301,0.00033333,2]
[326981355,1715678183938,-258.668902,0.00033333,2]
[326981356,1715678183960,-258.668902,0.00033333,2]
[326981357,1715678183982,-430.941277,0.00033333,2]
[326981358,1715678184004,-430.941277,0.00033333,2]
[326981359,1715678184028,-1325.376646,0.00033333,2]
[326981360,1715678184050,-1325.376656,0.00033333,2]
[326981361,1715678184072,-467.5754666,0.00034,4]
[326981362,1715678184095,-154.81422293,0.00035,4]
[326981363,1715678184119,-1331.46927635,0.00035,7]
[326981364,1715678184144,-1331.46927635,0.00035,7]
[326981365,1715678184167,-225.17525475,0.000356,30]
[326981366,1715678184190,-1331.46927635,0.000371,7]
[326981367,1715678184215,-1331.46927635,0.000371,7]
[326981368,1715678184241,-173.434167,0.0003774,2]
[326981369,1715678184264,-396.0,0.00038,30]
[326981370,1715678184286,-1452.51193783,0.000392,11]
[326981371,1715678184308,-1452.51193783,0.000392,11]
[326981372,1715678184330,-591.0,0.000392,2]
[326981373,1715678184353,-157.798265,0.00039765,2]
[326981374,1715678184375,-1452.51193783,0.000413,11]
[326981375,1715678184397,-1452.51193783,0.000413,11]
[326981376,1715678184420,-258.668902,0.000413,7]
[326981377,1715678184448,-258.668902,0.000413,7]
[326981378,1715678184472,-430.941277,0.000413,2]
[326981379,1715678184498,-430.941277,0.000413,2]
[326981380,1715678184522,-457.9236817,0.00043,30]
[326981381,1715678184546,-1260.04409705,0.000433,4]
[326981382,1715678184570,-1573.55459932,0.000434,15]
[326981383,1715678184595,-1573.55459932,0.000434,15]
[326981384,1715678184620,-258.668902,0.00043779,7]
[326981385,1715678184644,-258.668894,0.00043779,7]
[326981386,1715678184668,-430.941277,0.00043779,2]
[326981387,1715678184692,-430.941274,0.00043779,2]
[326981388,1715678184779,1465.51,0.00035616,3]
[326981389,1715678191113,151.0,0.00019999,2]
[326981390,1715678191483,151.0,0.00019999,2]
[326981391,1715678191631,225.9724696,0.00021918,2]
[326981392,1715678191827,151.0,0.0002,2]
[326981393,1715678192161,151.0,0.0002,2]
[326981394,1715678192523,151.0,0.0002,2]
[326981395,1715678192921,151.0,0.00020328,2]
[326981396,1715678193353,222.97125671,0.00043778,31]
[326981397,1715678193432,151.0,0.00024946,2]
[326981398,1715678193779,151.0,0.00025,2]
[326981399,1715678193884,151.0,0.00019999,2]
[326981400,1715678194118,193.906731,0.00032475,2]
[326981401,1715678194217,151.0,0.00019999,2]
[326981408,1715678515749,-500.0,0.00033332,7]
[326981409,1715678515778,-500.0,0.00033332,7]
[326981410,1715678515808,-500.0,0.00033332,7]
[326981411,1715678515837,-368.38459283,0.00033332,7]
[326981412,1715678515865,-492.44738441,0.00033332,7]
[326981413,1715678515893,-409.4544495,0.00033332,7]
[326981414,1715678515922,-500.0,0.00033332,7]
[326981415,1715678515949,-500.0,0.00033332,7]
[326981416,1715678515978,-200.0,0.00033332,7]
[326981417,1715678516006,-500.0,0.00033332,7]
[326981418,1715678516035,-500.0,0.00033332,7]
[326981419,1715678516061,-500.0,0.00033332,7]
[326981420,1715678516085,-500.0,0.00033332,7]
[326981421,1715678516110,-500.0,0.00033332,7]
[326981422,1715678516134,-500.0,0.00033332,7]
[326981423,1715678516279,-500.0,0.00033332,7]
[326981424,1715678516304,-500.0,0.00033332,7]
[326981425,1715678516328,-500.0,0.00033332,7]
[326981426,1715678516353,-500.0,0.00033332,7]
[326981427,1715678516377,-500.0,0.00033332,7]
[326981428,1715678516400,-500.0,0.00033332,7]
[326981429,1715678516424,-500.0,0.00033332,7]
[326981430,1715678516449,-500.0,0.00033332,7]
[326981431,1715678516473,-500.0,0.00033332,7]
[326981432,1715678516498,-500.0,0.00033332,7]
[326981433,1715678516526,-500.0,0.00033332,7]
[326981434,1715678516554,-500.0,0.00033332,7]
[326981435,1715678516580,-500.0,0.00033332,7]
[326981436,1715678516606,-500.0,0.00033332,7]
[326981437,1715678516632,-500.0,0.00033332,7]
[326981438,1715678516660,-500.0,0.00033332,7]
[326981439,1715678516685,-395.59897034,0.00033332,7]
[326981440,1715678516709,-500.0,0.00033332,7]
[326981441,1715678516734,-500.0,0.00033332,7]
[326981442,1715678516758,-500.0,0.00033332,7]
[326981443,1715678516786,-500.0,0.00033332,7]
[326981444,1715678516810,-428.22008319,0.00033332,7]
[326981445,1715678516834,-500.0,0.00033332,7]
[326981446,1715678516857,-500.0,0.00033332,7]
[326981447,1715678516880,-500.0,0.00033332,7]
[326981448,1715678516905,-500.0,0.00033332,7]
[326981449,1715678516928,-500.0,0.00033332,7]
[326981450,1715678516952,-500.0,0.00033332,7]
[326981451,1715678516975,-500.0,0.00033332,7]
[326981452,1715678516998,-500.0,0.00033332,7]
[326981453,1715678517025,-500.0,0.00033332,7]
[326981454,1715678517048,-500.0,0.00033332,7]
[326981455,1715678517072,-500.0,0.00033332,7]
[326981456,1715678517097,-500.0,0.00033332,7]
[326981457,1715678517120,-500.0,0.00033332,7]
[326981458,1715678517143,-500.0,0.00033332,7]
[326981459,1715678517166,-500.0,0.00033332,7]
[326981460,1715678517190,-500.0,0.00033332,7]
[326981461,1715678517213,-500.0,0.00033332,7]
[326981462,1715678517236,-500.0,0.00033332,7]
[326981463,1715678517258,-500.0,0.00033332,7]
[326981464,1715678517284,-500.0,0.00033332,7]
[326981465,1715678517309,-400.0,0.00033332,7]
[326981466,1715678517332,-500.0,0.00033332,7]
[326981467,1715678517354,-936.10037176,0.000356,30]
[326981468,1715678517379,-151.0,0.00043796,7]
[326981469,1715678517401,-151.0,0.00043796,7]
[326981470,1715678517423,-206.935122,0.00043796,7]
[326981471,1715678517445,-206.935122,0.00043796,7]
[326981472,1715678517467,-151.0,0.00043796,7]
[326981473,1715678517490,-151.0,0.00043796,7]
[326981474,1715678517513,-151.0,0.00043796,7]
[326981475,1715678517541,-246.775334,0.00043796,7]
[326981476,1715678517564,-172.229533,0.00043796,7]
[326981477,1715678517587,-172.229533,0.00043796,7]
[326981478,1715678517610,-1369.818744,0.00043796,7]
[326981479,1715678517634,-1369.818744,0.00043796,7]
[326981480,1715678517655,-151.0,0.00043796,7]
[326981481,1715678517678,-500.0,0.00043836,31]
[326981482,1715678517700,-500.0,0.00043836,31]
[326981483,1715678517723,-500.0,0.00043836,31]
[326981484,1715678517746,-500.0,0.00043836,31]
[326981485,1715678517772,-500.0,0.00043836,31]
[326981486,1715678517795,-500.0,0.00043836,31]
[326981487,1715678517818,-500.0,0.00043836,31]
[326981488,1715678517841,-500.0,0.00043836,31]
[326981489,1715678517864,-500.0,0.00043836,31]
[326981490,1715678517887,-500.0,0.00043836,31]
[326981491,1715678517910,-416.20452831,0.00043836,31]
[326981492,1715678517934,-500.0,0.00043836,31]
[326981493,1715678517958,-500.0,0.00043836,31]
[326981494,1715678517981,-63064.07327033,0.0004444,44]
[326981495,1715678518004,-151.0,0.0004444,7]
[326981496,1715678518028,-206.935122,0.0004444,7]
[326981497,1715678518051,-151.0,0.0004444,7]
[326981498,1715678518073,-206.935122,0.0004444,7]
[326981499,1715678518097,-151.0,0.0004444,7]
[326981500,1715678518120,-151.0,0.0004444,7]
[326981501,1715678518145,-172.229533,0.0004444,7]
[326981502,1715678518169,-172.229533,0.0004444,7]
[326981503,1715678518193,-1369.818744,0.0004444,7]
[326981504,1715678518292,-1369.818744,0.0004444,7]
[326981505,1715678518315,-151.0,0.0004444,7]
[326981506,1715678518337,-323.0,0.00045,120]
[326981507,1715678518360,-1573.55459932,0.000455,15]
[326981508,1715678518382,-122784.14381126,0.000467,30]
[326981509,1715678518406,-8857.17351972,0.00049315,61]
[326981510,1715678518428,-500.0,0.00049315,31]
[326981511,1715678518451,-500.0,0.00049315,31]
[326981512,1715678518473,-500.0,0.00049315,31]
[326981513,1715678518496,-200.0,0.00049315,31]
[326981514,1715678518520,-500.0,0.00049315,31]
[326981515,1715678518548,-500.0,0.00049315,31]
[326981516,1715678518575,-5000.0,0.0005,57]
[326981517,1715678518596,-500.0,0.0005,10]
[326981518,1715678518619,-500.0,0.0005,10]
[326981519,1715678518642,-153.0,0.00050892,30]
[326981520,1715678518664,-153.0,0.00051713,30]
[326981521,1715678518688,-153.0,0.00051713,30]
[326981522,1715678518710,-153.0,0.00051713,30]
[326981523,1715678518734,-501.5144665,0.00052,15]
[326981524,1715678529091,154.28272,0.00043796,7]
[326981525,1715678529428,154.28272,0.0004444,7]
[326981526,1715678533077,154.28272,0.00043796,7]
[326981527,1715678533402,154.28272,0.0004444,7]
[326981536,1715678552459,300.0,0.00034999,7]
[326981537,1715678552492,211.04887903,0.00034999,7]
[326981538,1715678552521,500.0,0.00034999,7]
[326981539,1715678552552,500.0,0.00034999,7]
[326981540,1715678552591,368.67969111,0.00034999,7]
[326981541,1715678552618,500.0,0.00034999,7]
[326981542,1715678552653,500.0,0.00034999,7]
[326981543,1715678552713,500.0,0.00034999,7]
[326981544,1715678552752,500.0,0.00034999,7]
[326981545,1715678552787,500.0,0.00034999,7]
[326981546,1715678552817,500.0,0.00034999,7]
[326981547,1715678552853,500.0,0.00034999,7]
[326981548,1715678552959,500.0,0.00034999,7]
[326981549,1715678553015,500.0,0.00034999,7]
[326981550,1715678553043,248.46602496,0.00034999,7]
[326981551,1715678553071,500.0,0.00034999,7]
[326981552,1715678553098,500.0,0.00034999,7]
[326981553,1715678553125,500.0,0.00034999,7]
[326981554,1715678553154,500.0,0.00034999,7]
[326981555,1715678558158,1006.08472962,0.00051878,14]
[326981556,1715678578727,10000.0,0.0004444,45]
[326981557,1715678596694,606.55254488,0.0004444,45]
[326981558,1715678609837,1242.8614055,0.00041096,7]
[326981559,1715678637688,550.8,0.00049342,7]
[326981560,1715678638028,183.6,0.00050592,7]
[326981561,1715678653190,550.8,0.00049342,7]
[326981562,1715678653423,183.6,0.00050592,7]
[326981563,1715678698857,151.0,0.000499,30]
[326981564,1715678745450,281.0,0.000505,28]
[326981565,1715678828703,591.0,0.000405,30]
[326981566,1715678882598,157.27495146,9.999e-05,2]
[326981567,1715678915602,465.74917975,9.999e-05,2]
[326981760,1715679032619,-3060.26446828,0.00018388,2]
[326981764,1715679032629,-2595.37774588,0.00018389,2]
[326981766,1715679032638,-1896.23906673,0.00018389,2]
[326981768,1715679032647,-460.881318,0.00018391,2]
[326981770,1715679032657,-15325.6591002,0.00018514,2]
[326981772,1715679032666,-155.38179526,0.00018998,2]
[326981774,1715679032676,-171.1031107,0.00019178,2]
[326981776,1715679032687,-234.6140841,0.000199,2]
[326981778,1715679032698,-1038.5540921,0.000199,2]
[326981780,1715679032712,-668.08652704,0.00019998,2]
[326981782,1715679032721,-458.16144716,0.00019998,2]
[326981784,1715679032731,-475.32221455,0.00019998,2]
[326981786,1715679032740,-155.38427888,0.00019998,2]
[326981788,1715679032751,-207.04612451,0.00019998,2]
[326981790,1715679032760,-229.15810129,0.00019998,2]
[326981792,1715679032769,-154.96630494,0.00019998,2]
[326981794,1715679032779,-155.1005922,0.00019998,2]
[326981796,1715679032791,-309.28863614,0.00019998,2]
[326981798,1715679032800,-155.08709736,0.00019998,2]
[326981800,1715679032809,-157.18037118,0.00019998,2]
[326981802,1715679032818,-305.43371295,0.00019998,2]
[326981804,1715679032827,-561.39662471,0.00019998,2]
[326981806,1715679032836,-500.0,0.00019998,2]
[326981808,1715679032846,-2252.87768825,0.00019998,2]
[326981810,1715679032855,-151.0,0.00019999,2]
[326981812,1715679032864,-1410.39092919,0.00019999,2]
[326981814,1715679032874,-1136.24181977,0.0002,2]
[326982446,1715679038575,-4215.57072464,0.0002,2]
[326982676,1715679040914,-12712.9464031,0.0002,2]
[326982678,1715679040926,-501.88142567,0.0002,2]
[326982760,1715679043761,-6193.70080247,0.0002,2]
[326982769,1715679043840,-1694.41804816,0.0002,2]
[326982774,1715679043853,-1804.323423,0.0002,2]
[326982777,1715679043863,-3012.47132687,0.0002,2]
[326982780,1715679043874,-2761.45255877,0.0002,2]
[326982782,1715679043884,-154.79876161,0.0002,2]
[326982785,1715679043894,-155.07438981,0.0002,2]
[326982788,1715679043904,-400.0,0.0002,2]
[326982790,1715679043914,-200.0,0.0002,2]
[326982791,1715679043923,-329.00577272,0.00020913,2]
[326982792,1715679043933,-500.0,0.00020913,2]
[326982793,1715679043942,-500.0,0.00020913,2]
[326982794,1715679043952,-500.0,0.00020913,2]
[326982795,1715679043962,-306.06717934,0.00020913,2]
[326982796,1715679043971,-225.0,0.00021918,2]
[326982797,1715679043980,-1074.6093077,0.00021918,2]
[326982798,1715679043989,-166.666666,0.00021918,2]
[326982799,1715679044000,-5233.72362095,0.00022,4]
[326982800,1715679044009,-159.57946618,0.00022,2]
[326982801,1715679044018,-166.666666,0.00022431,2]
[326982802,1715679044027,-166.666666,0.00022944,2]
[326982804,1715679044036,-155.57882509,0.00023,2]
[326982807,1715679044046,-166.666666,0.00023456,2]
[326982809,1715679044055,-165.820151,0.00023562,2]
[326982810,1715679044064,-171.61414,0.00023562,2]
[326982812,1715679044073,-166.666666,0.00023969,2]
[326982814,1715679044084,-166.666666,0.00024482,2]
[326982815,1715679044093,-621.23899472,0.00024946,2]
[326982816,1715679044103,-500.0,0.00024999,2]
[326982817,1715679044112,-500.0,0.00024999,2]
[326982818,1715679044121,-500.0,0.00024999,2]
[326982819,1715679044131,-274.53980749,0.00024999,2]
[326982820,1715679044139,-160.60390733,0.00024999,2]
[326982821,1715679044149,-500.0,0.00024999,2]
[326982822,1715679044158,-382.36194224,0.00024999,2]
[326982823,1715679044167,-16166.89458835,0.00025,2]
[326982824,1715679044177,-400.46869514,0.00025,2]
[326982825,1715679044186,-154.97477557,0.00025,2]
[326982826,1715679044195,-167.30505147,0.00025,2]
[326982827,1715679044205,-620.06194974,0.00026194,2]
[326982828,1715679044214,-187.03428599,0.00027,2]
[326982829,1715679044224,-460.881318,0.00027586,2]
[326982830,1715679044234,-221.44137162,0.00028,2]
[326982831,1715679044244,-942.30546672,0.0003,2]
[326982832,1715679044254,-1359.42925795,0.00030375,4]
[326982833,1715679044263,-493.0,0.0003112,2]
[326982834,1715679044273,-154.464,0.0003112,2]
[326982835,1715679044282,-448.15988121,0.00032,4]
[326982837,1715679044291,-467.5754666,0.00034,4]
[326982838,1715679044301,-150.0,0.0003412,2]
[326982840,1715679044311,-154.79876161,0.00035,4]
[326982842,1715679044320,-2997.83110952,0.00035,4]
[326982844,1715679044330,-301.6114542,0.00035,4]
[326982846,1715679044340,-171.61414,0.0003774,2]
[326982847,1715679044350,-1898.53683844,0.0004,4]
[326982849,1715679044360,-6101.29531752,0.000405,4]
[326982851,1715679044371,-1689.23080311,0.000405,4]
[326982853,1715679044380,-543.04349182,0.000405,2]
[326982855,1715679044390,-3000.0,0.000405,2]
[326982856,1715679044399,-1165.1734618,0.000405,4]
[326982858,1715679044408,-165.820151,0.00042466,2]
[326982859,1715679044418,-386.35120039,0.00043341,3]
[326982861,1715679044428,-980.29334132,0.0004353,2]
[326982863,1715679044437,-416.66666666,0.00043532,2]
[326982865,1715679044447,-238.7866,0.0004356,2]
[326982866,1715679044456,-1879.77,0.0004368,3]
[326982868,1715679044466,-16725.62046981,0.0004369,2]
[326982873,1715679044568,-1419.48,0.00043752,3]
[326982874,1715679044578,-2706.86,0.00043752,3]
[326982875,1715679044588,-2255.72,0.00043752,3]
[326982876,1715679044597,-49926.96051059,0.00043762,7]
[326982877,1715679044606,-979.66261642,0.00043762,2]
[326982878,1715679044616,-19106.73999418,0.00043778,4]
[326982880,1715679044625,-1652.64003182,0.000446,2]
[326982882,1715679044635,-3266.52478143,0.00045,4]
[326982884,1715679044645,-300.33324436,0.00048348,2]
[326982886,1715679044654,-1652.64003182,0.000496,2]
[326982888,1715679044663,-153.0,0.00049642,2]
[326982890,1715679044673,-153.0,0.00049642,2]
[326982892,1715679044682,-153.0,0.00049642,2]
[326982894,1715679044691,-153.0,0.00049642,2]
[326982895,1715679044700,-153.0,0.00049642,2]
[326982897,1715679044714,-153.0,0.00049642,2]
[326982899,1715679044723,-153.0,0.00049642,2]
[326982900,1715679044732,-153.0,0.00049642,2]
[326982902,1715679044741,-153.0,0.00049642,2]
[326982904,1715679044754,-1694.5972608,0.00050248,19]
[326982906,1715679044763,-306.0,0.00050892,2]
[326982907,1715679044772,-153.0,0.00050892,2]
[326982908,1715679044781,-165.351474,0.00051918,2]
[326982909,1715679044791,-171.61414,0.00051918,2]
[326982910,1715679044799,-1856.92,0.00053235,7]
[326982911,1715679044809,-1283.25,0.00053235,7]
[326982912,1715679044818,-1815.63992229,0.00053262,23]
[326982913,1715679044828,-12564.62763385,0.00053535,120]
[326982914,1715679044837,-1652.64003182,0.000546,2]
[326982915,1715679044847,-152.024151,0.00054795,3]
[326982916,1715679044856,-611.01136614,0.00054795,120]
[326982917,1715679044865,-500.0,0.00054795,31]
[326982918,1715679044874,-193.9,0.00054795,31]
[326982919,1715679044883,-500.0,0.00054795,31]
[326982920,1715679044893,-500.0,0.00054795,31]
[326982921,1715679044902,-500.0,0.00054795,31]
[326982922,1715679044911,-500.0,0.00054795,31]
[326982923,1715679044920,-500.0,0.00054795,31]
[326982924,1715679044929,-500.0,0.00054795,31]
[326982925,1715679044938,-4428.58675986,0.00055455,61]
[326982926,1715679044948,-151.010246,0.00055455,120]
[326982927,1715679044957,-284.303342,0.00055455,120]
[326982928,1715679044968,-151.0,0.00055455,120]
[326982929,1715679044977,-430.941277,0.00055455,2]
[326982930,1715679044986,-430.941277,0.00055455,2]
[326982931,1715679044996,-165.548097,0.00055455,120]
[326982932,1715679045006,-151.0,0.00055455,120]
[326982933,1715679045015,-151.0,0.00055455,120]
[326982934,1715679045026,-151.0,0.00055455,120]
[326982935,1715679045035,-1095.854995,0.00055455,120]
[326982936,1715679045044,-151.0,0.00055455,120]
[326982937,1715679045054,-1095.854995,0.00055455,120]
[326982938,1715679045064,-151.0,0.00055455,120]
[326982939,1715679045073,-151.0,0.00055455,120]
[326982940,1715679045083,-250.172853,0.00055455,120]
[326982941,1715679045092,-151.0,0.00055455,120]
[326982942,1715679045102,-250.172853,0.00055455,120]
[326982943,1715679045112,-151.0,0.00055455,120]
[326982944,1715679045123,-151.0,0.00055455,120]
[326982945,1715679045132,-151.0,0.00055455,120]
[326982946,1715679045142,-151.0,0.00055455,120]
[326982947,1715679045150,-151.0,0.00055455,120]
[326982948,1715679045159,-151.0,0.00055455,120]
[326982949,1715679045169,-151.0,0.00055455,120]
[326982950,1715679045178,-612.342432,0.00055455,120]
[326982951,1715679045187,-612.342432,0.00055455,120]
[326982952,1715679045196,-151.0,0.00055455,120]
[326982953,1715679045206,-151.0,0.00055455,120]
[326982954,1715679045215,-55555.0,0.00055455,120]
[326982955,1715679045224,-4080.70712634,0.00055555,48]
[326982965,1715679049629,-9388.70802364,0.00019999,2]
[326982966,1715679049638,-499.03812998,0.00054795,120]
[326982967,1715679049647,-15919.29287366,0.00055555,48]
[326982968,1715679049656,-151.0,0.00055555,120]
[326982969,1715679049666,-151.0,0.00055555,120]
[326982970,1715679049675,-151.0,0.00055555,120]
[326982971,1715679049684,-292.6,0.0005589,120]
[326982972,1715679049693,-157.798265,0.00055969,2]
[326982973,1715679049702,-1936.68258378,0.00056277,27]